Cogmind - Beta 16 @@@ ROGUE MODE // 2025.10.27 @ 19:15:57 Player: Rocko1345 Result: Destroyed by G-47 Trooper with Particle Gun Performance ------------- Evolutions (2) 1000 Regions Visited (3) 600 Robots Destroyed (45) 225 Value Destroyed (1251) 1251 Prototype IDs (2) 40 Alien Tech Used (0) 0 Bonus (0) 0 TOTAL SCORE: 3116 Bonus ------- None Cogmind --------- Core Integrity 0/550 Matter 288/300 Energy 94/100 System Corruption 0% Temperature Cool (9) Movement Core (50) Location -8/Materials Parts ------- > --- POWER (1) -------- (None) > --- PROPULSION (2) --- (None) > --- UTILITY (6) ------ (None) > --- WEAPON (2) ------- Axe > --- INVENTORY (5) ---- Improved VTOL Module Trap Scanner Hacking Suite Heavy EM Pulse Gun Improved Medium Laser Peak State ------------ > --- POWER ------------ Heavy Ion Engine > --- PROPULSION ------- Armored Treads Armored Treads > --- UTILITY ---------- Large Storage Unit Heavy Armor Plating Heavy Armor Plating Hardened Light Armor Plating > --- WEAPON ----------- Heavy Mace Heavy Mace > --- INVENTORY -------- Armored Treads Armored Treads Advanced Treads Improved VTOL Module Advanced Heat Sink Trap Scanner Light Armor Plating Heavy Armor Plating Heavy EM Pulse Gun Beam Rifle Improved Medium Laser Datajack Mace Axe [Rating: 34] Favorites ----------- Power Heavy Ion Engine Engine Heavy Ion Engine Propulsion Armored Treads Treads Armored Treads Wheel Compact Wheel Utility Large Storage Unit Storage Large Storage Unit Protection Heavy Armor Plating Weapon Heavy Mace Energy Gun Improved Medium Laser Ballistic Gun Light Assault Rifle Impact Weapon Heavy Mace Slashing Weapon Axe Build | -11 -10 -9 -8 ------- Run | Yrd Mat Mat Mat Slots Evolved 4 | . . 2 2 Power . | . . . . Propulsion . | . . . . Utility 4 | . . 2 2 Weapon . | . . . . Parts Attached 34 | 6 5 12 11 Power 4 | 1 2 1 . Engine 4 | 1 2 1 . Core . | . . . . Reactor . | . . . . Propulsion 9 | 2 . 4 3 Treads 7 | . . 4 3 Leg . | . . . . Wheel 2 | 2 . . . Hover . | . . . . Flight . | . . . . Utility 11 | 1 2 4 4 Device . | . . . . Storage 2 | 1 1 . . Processor . | . . . . Hackware . | . . . . Protection 9 | . 1 4 4 Artifact . | . . . . Weapon 10 | 2 1 3 4 Energy Gun 1 | . . 1 . Energy Cannon . | . . . . Ballistic Gun 4 | 2 . 1 1 Ballistic Cannon . | . . . . Launcher . | . . . . Special Weapon . | . . . . Impact Weapon 4 | . 1 1 2 Slashing Weapon 1 | . . . 1 Piercing Weapon . | . . . . Special Melee Weapon . | . . . . Unidentified Prototypes 2 | . . 2 . Parts Lost 18 | . 1 5 12 Power 3 | . 1 1 1 Propulsion 6 | . . 2 4 Utility 5 | . . . 5 Weapon 4 | . . 2 2 Highest Loss Streak 5 | . 1 3 5 To Critical Strikes . | . . . . Average Backups 7 | . 1 5 12 Power . | . . . . Propulsion 2 | . . 1 4 Utility 1 | . . . 3 Weapon 2 | . . 2 3 Tool/Special . | . . . . Unused Backups 8 | . . 1 7 Power . | . . . . Propulsion 1 | . . . 1 Utility 3 | . . . 3 Weapon 3 | . . 1 2 Tool/Special 1 | . . . 1 Average Slot Usage (%) 82 | . 96 82 77 Engine 9 | . 13 9 8 Treads 15 | . . 18 17 Wheel 4 | . 28 2 . Storage 10 | . 14 11 8 Protection 21 | . 11 21 24 Energy Gun 2 | . . 4 . Ballistic Gun 5 | . 21 3 1 Impact Weapon 11 | . 6 11 14 Peak Build Rating 34 | 6 7 24 34 Average Rating 19 | 4 6 13 31 On Entrance 9 | . 6 7 24 Avg Prop Armor Cover (%) . | . . . . Naked Turns . | . . . . Heaviest Build 69 | 12 32 53 69 Greatest Support 42 | 26 26 40 42 Greatest Overweight (x) 1 | . 1 1 1 Average Overweight (x) . | . . . . Largest Inventory Capacity 15 | 8 15 15 15 Average Capacity 14 | 7 14 15 14 Most Carried 15 | . 2 15 15 Average Carried 7 | . 1 5 13 Final Capacity 15 | 8 15 15 5 Final Carried 15 | . 2 15 5 Class Distribution -------------------- 100% | Mutant Dominant Class ---------------- Mutant | -10/Materials Mutant | -9/Materials Mutant | -8/Materials Resources | -11 -10 -9 -8 ----------- Run | Yrd Mat Mat Mat Matter Collected 540 | 225 91 105 119 Remotely . | . . . . Salvage Created 1493 | . 368 408 717 Parts 54 | . 16 17 21 Haulers Intercepted 1 | . . . 1 Recyclers Shooed 1 | . . 1 . Parts Field Recycled . | . . . . Retrieved Matter . | . . . . Parts Self-Destructed . | . . . . Prevented . | . . . . Parts Restored . | . . . . Kills | -11 -10 -9 -8 ------- Run | Yrd Mat Mat Mat Combat Hostiles Destroyed 38 | . 12 11 15 Melee 16 | . 8 3 5 Guns 11 | . 1 5 5 Classes Destroyed 10 | . 5 2 3 Worker 1 | . 1 . . Hauler 1 | . . . 1 Recycler 1 | . . . 1 Operator 2 | . 2 . . Watcher 2 | . 1 1 . Swarmer 13 | . 6 3 4 Grunt 17 | . 6 3 8 Brawler 3 | . . 2 1 Sentry 4 | . . 3 1 Specialist 1 | . . . 1 Best Kill Streak 5 | . 5 3 4 Combat Bots Only 5 | . 5 3 4 Max Kills in Single Turn 1 | . 1 1 1 Gunslinging . | . . . . Exploded . | . . . . Melee 1 | . 1 1 1 Uniques/NPCs Destroyed . | . . . . Combat | -11 -10 -9 -8 -------- Run | Yrd Mat Mat Mat Hostile Shots Fired 339 | . 50 63 226 Missed 87 | . 14 14 59 Hits 252 | . 36 49 167 Melee 15 | . . 10 5 Projectile 237 | . 36 39 162 Critical Strikes 14 | . . 2 12 Damage Taken 4543 | . 327 725 3491 Core 706 | . 77 68 561 Absorbed by Shields . | . . . . Redirected to Shielding 30 | . 15 15 . Core Remaining (%) 84 | 100 69 83 . Volleys Fired 28 | . 3 18 7 Largest 2 | . 2 1 1 Hottest 56 | . 40 56 56 Shots Fired 31 | . 6 18 7 Gun 31 | . 6 18 7 Cannon . | . . . . Launcher . | . . . . Special . | . . . . Kinetic 18 | . 6 10 2 Thermal 13 | . . 8 5 Explosive . | . . . . Electromagnetic . | . . . . Robot Hit Streak 11 | . 2 7 11 Robot Miss Streak 3 | . 2 3 . Penetration Max . | . . . . Secondary Targets . | . . . . Shots Hit Robots 123 | . 25 40 58 Core Hits 33 | . 9 11 13 Critical Kills 6 | . 3 2 1 Critical Parts Destroyed 10 | . 7 1 2 Critical Strikes 16 | . 10 3 3 Smash 16 | . 10 3 3 Melee Attacks 132 | . 30 34 68 Impact 122 | . 30 34 58 Slashing 10 | . . . 10 Piercing . | . . . . Sneak Attacks 6 | . 3 1 2 Combat Hostiles . | . . . . Follow-up Attacks 8 | . . . 8 Damage Inflicted 3306 | . 688 916 1702 Guns 379 | . 25 245 109 Cannons . | . . . . Explosions . | . . . . Melee 2927 | . 663 671 1593 Ramming . | . . . . Kinetic 192 | . 25 141 26 Thermal 187 | . . 104 83 Explosive . | . . . . Electromagnetic . | . . . . Impact 2799 | . 663 671 1465 Slashing 128 | . . . 128 Piercing . | . . . . Highest Corruption . | . . . . Average Corruption . | . . . . Corruption Purged . | . . . . Corruption Blocked . | . . . . Overload Shots . | . . . . Overflow Damage 571 | . 284 84 203 Projectiles . | . . . . Explosions . | . . . . Melee 571 | . 284 84 203 Knockbacks 10 | . 3 3 4 Impact 10 | . 3 3 4 Kinetic . | . . . . Secondary . | . . . . Self-Inflicted Damage . | . . . . Shots . | . . . . Rammed . | . . . . Targets Rammed . | . . . . Kicked . | . . . . Crushed . | . . . . Highest Temperature 200 | . . 132 200 Average Temperature 45 | . . 52 44 Received Heat Transfer 1371 | . 45 201 1125 Siege Activations . | . . . . Martial Activations . | . . . . Shielding Activations . | . . . . Robots Disrupted . | . . . . Combat Hostiles . | . . . . Robots Corrupted 13 | . 4 3 6 Combat Hostiles 11 | . 3 3 5 Parts Fried 22 | . 7 4 11 Impact Corruptions 32 | . 15 6 11 Robots Melted . | . . . . Combat Hostiles . | . . . . Parts Melted . | . . . . Heat Transferred 407 | . . 222 185 Parts Sabotaged . | . . . . Parts Stolen . | . . . . Parts Stripped . | . . . . Power Chain Reactions . | . . . . Alert | -11 -10 -9 -8 ------- Run | Yrd Mat Mat Mat Maximum Alert Level 1 | . 1 . . Low Security (%) 99 | 100 98 100 100 Level 1 . | . 1 . . Level 2 . | . . . . Level 3 . | . . . . Level 4 . | . . . . Level 5 . | . . . . High Security . | . . . . Max Security . | . . . . Peak Influence 207 | . 207 88 81 Initial 83 | . . 83 8 Average 26 | . 62 20 20 Influence Increases 1015 | . 326 308 381 Destroy 0b10 Robot/C 760 | . 240 220 300 Destroy 0b10 Robot/NC 35 | . 20 5 10 Destroy Leader 166 | . 52 62 52 Successful Hack 23 | . 14 5 4 Destroy Structure 1 | . . 1 . Partial Spotted 15 | . . 15 . Lose Combat Pursuer 15 | . . . 15 Influence Decreases 1009 | . 127 487 395 Entered New Map 128 | . . 116 12 Time Decay 703 | . 117 323 263 Lost Part 178 | . 10 48 120 Squads Dispatched 5 | . 2 . 3 Investigation . | . . . . Extermination . | . . . . Reinforcement 5 | . 2 . 3 Assault . | . . . . Garrison . | . . . . Intercept . | . . . . Searches Triggered . | . . . . Construction Impeded . | . . . . Haulers Reinforced . | . . . . Active Scanning Responses . | . . . . Cargo Convoy Interrupts . | . . . . Stealth | -11 -10 -9 -8 --------- Run | Yrd Mat Mat Mat Distress Signals 5 | . 4 1 . Communications Jammed . | . . . . Distress Signals . | . . . . Times Spotted 61 | . 18 18 25 Peak Tracking Total 6 | . 5 5 6 Tactical Retreats 1 | . . . 1 Traps | -11 -10 -9 -8 ------- Run | Yrd Mat Mat Mat Traps Triggered 2 | . . . 2 Indirectly . | . . . . Trap Hack Attempts . | . . . . Triggered . | . . . . Disarmed . | . . . . Reprogrammed . | . . . . Reused . | . . . . Traps Extracted . | . . . . Installed . | . . . . Triggered . | . . . . Machines | -11 -10 -9 -8 ---------- Run | Yrd Mat Mat Mat Machines Disabled . | . . . . Max in Single Turn . | . . . . Machines Repaired . | . . . . Machines Dismantled . | . . . . Machines Sabotaged . | . . . . Overloaded Fab Kills . | . . . . Hacking | -11 -10 -9 -8 --------- Run | Yrd Mat Mat Mat Machines Accessed 8 | . 3 3 2 Terminals 5 | . 3 1 1 Fabricators . | . . . . Repair Stations . | . . . . Recycling Units 3 | . . 2 1 Scanalyzers . | . . . . Garrison Access . | . . . . Total Hacks 22 | . 11 7 4 Successful 13 | . 6 5 2 Failed 9 | . 5 2 2 Catastrophic 1 | . 1 . . Database Lockouts . | . . . . Manual 11 | . 9 2 . Terminals 16 | . 11 2 3 Fabricators . | . . . . Repair Stations . | . . . . Recycling Units 6 | . . 5 1 Scanalyzers . | . . . . Garrison Access . | . . . . Terminal Hacks 3 | . 2 . 1 Terminal Index 1 | . 1 . . Locate Traps 2 | . 1 . 1 Fabricator Hacks . | . . . . Repair Station Hacks . | . . . . Recycling Unit Hacks 5 | . . 4 1 Report Inventory 4 | . . 3 1 Retrieve Components 1 | . . 1 . Scanalyzer . | . . . . Garrison Access Hacks . | . . . . Unauthorized Hacks 5 | . 4 1 . Terminals 5 | . 4 1 . Assimilate 1 | . 1 . . Botnet 4 | . 3 1 . Fabricators . | . . . . Repair Stations . | . . . . Recycling Units . | . . . . Scanalyzers . | . . . . Garrison Access . | . . . . Data Cores Recovered . | . . . . Used . | . . . . Hacking Detections 5 | . 2 2 1 Full Trace Events . | . . . . Feedback Events . | . . . . Feedback Blocked . | . . . . Robot Schematics Acquired . | . . . . Robots Built . | . . . . Authchips . | . . . . Time . | . . . . Total Robot Build Rating . | . . . . Part Schematics Acquired . | . . . . Parts Built . | . . . . Authchips . | . . . . Time . | . . . . Total Part Build Rating . | . . . . Part Studies Acquired . | . . . . Parts Repaired . | . . . . Time . | . . . . Parts Recycled . | . . . . Recycled Matter . | . . . . Retrieved Matter . | . . . . Retrieved Components 7 | . . 7 . Parts Scanalyzed . | . . . . Part Schematics Acquired . | . . . . Parts Damaged . | . . . . Bothacking | -11 -10 -9 -8 ------------ Run | Yrd Mat Mat Mat Used RIF Installer . | . . . . Robots Hacked . | . . . . Non-combat . | . . . . Combat . | . . . . Robot Hacks Applied . | . . . . Relay Couplers Released . | . . . . Fabnet Peak Effective % . | . . . . Robots Rewired . | . . . . Allies Hacked . | . . . . Hacks Repelled . | . . . . Allies | -11 -10 -9 -8 -------- Run | Yrd Mat Mat Mat Total Allies . | . . . . Largest Group . | . . . . Highest-Rated Group . | . . . . Highest-Rated Ally . | . . . . Total Orders . | . . . . Ally Attacks . | . . . . Total Damage . | . . . . Kills . | . . . . Allies Corrupted . | . . . . Allies Melted . | . . . . Intel | -11 -10 -9 -8 ------- Run | Yrd Mat Mat Mat Active Infowar (turns) . | . . . . Robot Analysis Total . | . . . . Derelict Logs Recovered . | . . . . Drone Launches . | . . . . Drone Recoveries . | . . . . Exploration | -11 -10 -9 -8 ------------- Run | Yrd Mat Mat Mat Turns Passed 3329 | 59 468 1432 1370 Spaces Moved 1624 | 61 355 741 467 Core 12 | 11 . . 1 Treads 1109 | . . 643 466 Legs . | . . . . Wheels 503 | 50 355 98 . Hover . | . . . . Flight . | . . . . Fastest Speed 50 | 50 90 105 50 Average Speed 170 | 82 99 162 247 Slowest Speed 250 | 90 105 250 250 Overloaded Moves . | . . . . Propulsion Burnouts . | . . . . Robots Hopped . | . . . . Potential Cave-ins . | . . . . Cave-ins Triggered . | . . . . Exploration Rate (%) 37 | 3 63 46 37 Regions Visited 3 Branch Regions . Pre-discovered Areas . | . . . . Known Exits Taken . | . . . . Unknown Exits Taken 3 | 1 1 1 . Scrap Searched . | . . . . Spaces Dug . | . . . . Terrain Destroyed . | . . . . Melee . | . . . . Projectile . | . . . . AOE . | . . . . Terrain Rammed . | . . . . Walls Destroyed . | . . . . Machines Disabled . | . . . . Actions | -11 -10 -9 -8 --------- Run | Yrd Mat Mat Mat Total 1937 | 66 410 890 571 Wait 96 | . 15 68 13 Move 1621 | 60 354 740 467 Hop . | . . . . Pick Up 18 | . 2 10 6 Fast Attach 18 | 6 3 9 . Attach 10 | . . 1 9 Detach 4 | . . 3 1 Swap 7 | . 2 2 3 Drop 12 | . 1 5 6 Fire 28 | . 3 18 7 Melee 123 | . 30 34 59 Ram . | . . . . Kick . | . . . . Crush . | . . . . Escape Stasis . | . . . . Rewire . | . . . . Trap . | . . . . Miscellaneous . | . . . . Route ------- -11/Scrapyard -10/Materials (discovered 3 exits: *Mat / [*Min x2]) -9/Materials (discovered 3 exits: *Mat x2 / [*Min]) -8/Materials History --------- Turn | Location | Event 20 | -11/Scrapyard | Discovered new exit (range 16) 60 | -11/Scrapyard | Entered Materials 159 | -10/Materials | Discovered new exit (range 6) 220 | -10/Materials | Discovered new exit (range 8) 329 | -10/Materials | Build established: Mutant 467 | -10/Materials | Discovered new exit (range 13) 528 | -10/Materials | Entered another Materials area 528 | -9/Materials | Evolved 2 slots: Utility x2 683 | -9/Materials | Lost 3 parts (1p1n1w) 772 | -9/Materials | Discovered new exit (range 8) 1283 | -9/Materials | Discovered new exit (range 5) 1782 | -9/Materials | Discovered new exit (range 15) 1960 | -9/Materials | Entered another Materials area 1960 | -8/Materials | Evolved 2 slots: Utility x2 3244 | -8/Materials | Core integrity fell below 50% 3270 | -8/Materials | Lost 4 parts (4u) 3324 | -8/Materials | Core integrity fell below 20% 3327 | -8/Materials | Lost 5 parts (1p2n2w) 3330 | -8/Materials | Destroyed by G-47 Trooper with Particle Gun Last Messages --------------- 03273_ U-05 Engineer builds a Wall. 03273_ Hvy. Mace follow-up attack on H-61 Shepherd. 03275_ K-01 Serf collects debris. 03283_ Arm. Treads destroyed. 03286_ Hvy. Ion Engine destroyed. 03288_ Hvy. Mace destroyed. 03290_ K-01 Serf cleans the Terminal. 03294_ Adv. Treads destroyed. 03294_ Knocked back. 03294_ K-01 Serf cleans the Terminal. 03296_ Acquired 3 matter. 03296_ Hvy. Mace destroyed. 03300_ Critical hit (Burn: +37). 03304_ Penetrated by Slug. 03324_ Critical hit (Burn: +37). 03327_ Penetrated by Slug. 03327_ Arm. Treads destroyed. 03327_ Knocked back. 03329_ Dropped Lrg. Storage Unit. 03329_ Penetrated by Slug. Map ----- +----------------------------------------------------+ | ???????????????????????????????????????? | | ???????????????????????????????????????? | | ???????????????????????????????????????? | | ???????????????????????????????????????? | | ????????????? ?????????????????????????? | | ????????????" ?????????????????????????? | | ???????" "" ????????????????????????? | | ?????? ????????????????????????? | | ???? ????????????????????????? | | ???? ! ????????????????????????? | | ??? ????????????????????????? | | ??? ????????????????????????? | | ??# ###????##?#?????????????? | | ??? ;T#####"############????? | | ??? %% %% ?? | | ??? % % % ?? | | ??# %###########????????? | | ??# ##?????????????????? | | ??# """ % ##?????????????????? | | ??# """ u %% #??????????????????? | | ??# """ #??????????????????? | | ??# #??????????????????? | | ??# % %g #??????????????????? | | ??# / #??????????????????? | | ??# !! #??????????????????? | | ??###+###### @ #??????????????????? | | ???????????# g H % #??????????????????? | | ???????????# x############???????? | | ???????????# #???????? | | ???????????# t #???????? | | ???????????# %% #???????? | | ???????????# ###########%% #???????? | | ???????????## ## ??# #???????? | | ????????????# ## ! * # ###?????? | | ????????????# k ?# + #T####### | | ???????????#+ ???""" """ # | | ??????????? # ???????????# | | ??????????### ???????????# | | ????????????# ???????????############# | | ???????????? ! ???????????????????????# | | ????????????? ???????????????????????# | | ???????????????????????????????????????# | | ???????????????????????????????????????# | | ???????????????????????????????????????# | | ???????????????????????????????????????# | | ???????????????????????????????????????# | | ???????????????????????????????????????# | | ???????????????????????????????????????# | | ???????????????????????????????????????# | | ???????????????????????????????????????# | +----------------------------------------------------+ Best States ------------- Heat Dissipation 31 Energy Generation 14 Energy Capacity 280 Matter Stores 300 Matter Capacity 300 Sight Range 16 Terrain Scan Density 10 Armor Coverage 1350 Resistance: EM 15 Core Shielding 20 Power Shielding 33 Evasion (%) 44 Recoil Reduction 2 Item Schematics ----------------- None Robot Schematics ------------------ None Fabricated ------------ Nothing Repaired ---------- Nothing Studied --------- None Alien Tech Used ----------------- None Achievements -------------- None Challenges ------------ None Game ------ Seed ServoMicrowarpBlade Manual? 0 Play Time 00:23:47 Cumulative 208.1 hours Start 2025.10.27 @ 18:49:24 End 2025.10.27 @ 19:15:57 Sessions 1 Manual Loads 0 Difficulty Rogue Special Mode None Game No. 250 Rogue 76 Adventurer 174 Explorer 0 Win Type - Total 1 Types 1/0/0/0/0/0/0/0/0/0 Lore% 52 Gallery% 58 Achievement% 38 Wizard Run 0 Options --------- Layout 0 ASCII 0 Keyboard 1 Movement Numpad Keybinds 0 Fullscreen 1 Font 18/Terminus Map View 76x50 Zoom Use 0% Tactical HUD 1 Map Filters NONE Filters NONE Steam 1 RUN: ce5bb690-70e9-45ba-b1f2-aafa6edf454c